fUSD/lending_fUSD_20250206
["ID","MTS","AMOUNT","RATE_DAILY","PERIOD"]
[351851352,1738819850760,-1818.74870361,0.00020215,2]
[351851353,1738819850770,-3211.49609629,0.00020215,2]
[351851354,1738819850779,-152.81188409,0.00020215,2]
[351851355,1738819850790,-173.65455112,0.00020215,2]
[351851356,1738819850799,-60991.8876754,0.00020215,10]
[351851357,1738819850810,-10562.939551,0.00020215,15]
[351851358,1738819850819,-7016.27731878,0.00020215,2]
[351851359,1738819850829,-51048.49993275,0.00020215,7]
[351851360,1738819850838,-550.0,0.00020215,2]
[351851361,1738819850848,-1452.01030672,0.00020215,2]
[351851362,1738819850857,-998.13374939,0.00020215,2]
[351851363,1738819850866,-1022.18585864,0.00020215,7]
[351851364,1738819850875,-945.2357834,0.00020215,2]
[351851365,1738819850885,-10599.82809332,0.00020215,2]
[351851366,1738819850895,-163923.57968678,0.00020215,2]
[351851367,1738819850904,-881026.07223799,0.00020215,60]
[351851368,1738819851088,-500.0,0.00020201,3]
[351851369,1738819851097,-904.1998856,0.00020215,60]
[351851370,1738819851117,-892.07410048,0.00020215,60]
[351851371,1738819851156,-912.41442028,0.00020215,60]
[351851372,1738819851168,-503.94297847,0.00020215,60]
[351851373,1738819851180,-1490.11302978,0.00020215,60]
[351851374,1738819851191,-1561.06609217,0.00020215,60]
[351851375,1738819851203,-996.47548,0.00020215,60]
[351851376,1738819851213,-496.60611,0.00020215,60]
[351851377,1738819851246,-5861.4289316,0.00020215,60]
[351851378,1738819851255,-1818.12998657,0.00020215,2]
[351851379,1738819851264,-6687.95423017,0.00020215,4]
[351851380,1738819851273,-1489366.51273193,0.00020215,30]
[351851381,1738819851282,-1160.50396364,0.00020215,90]
[351851382,1738819851291,-555.01872721,0.00020215,5]
[351851383,1738819851300,-199661.03889729,0.00020215,2]
[351851384,1738819851309,-1471.9428576,0.00020215,10]
[351851385,1738819851318,-1043.63326031,0.00020215,120]
[351851386,1738819851327,-624.46451205,0.00020215,30]
[351851387,1738819851336,-64184.06545724,0.00020215,2]
[351851388,1738819851351,-422.33340606,0.00020215,2]
[351851389,1738819851459,-426.12,0.00020201,3]
[351851390,1738819852957,352.2626,8.256e-05,2]
[351851391,1738819868001,6406.33341159,9.995e-05,2]
[351851392,1738819868290,6406.33341159,9.974e-05,2]
[351851393,1738819868596,6406.33341159,9.956e-05,2]
[351851394,1738819868866,6406.33341159,9.955e-05,2]
[351851395,1738819877455,200.0,9.979e-05,2]
[351851396,1738819877833,200.0,9.943e-05,2]
[351851397,1738819885949,156.401796,9.881e-05,2]
[351851398,1738819886793,331.10083791,9.936e-05,2]
[351851399,1738819887086,331.10083791,9.962e-05,2]
[351851400,1738819887373,331.10083791,9.996e-05,2]
[351851401,1738819887651,331.10083791,9.95e-05,2]
[351851402,1738819896300,5000.0,8.973e-05,2]
[351851403,1738819904350,156.469842,9.881e-05,2]
[351851405,1738820017793,1987.0,0.0002,120]
[351851406,1738820101542,3257.2715,8.836e-05,2]
[351851407,1738820141289,1100.0,0.0001,3]
[351851408,1738820283517,1259.5409,8.836e-05,2]
[351851411,1738820432273,158.400282,9.881e-05,2]
[351851412,1738820440528,153.48,0.00010137,2]
[351851413,1738820488711,637.5008743,0.0002,120]
[351852166,1738821031982,-550.0,0.00013,2]
[351852167,1738821031992,-150.0,0.00014,2]
[351852168,1738821032001,-150.0,0.000143,2]
[351852169,1738821032011,-600.0,0.00015,2]
[351852170,1738821032020,-150.0,0.00015814,2]
[351852171,1738821032030,-359.04,0.00016632,2]
[351852172,1738821032039,-16.54,0.00017,2]
[351852173,1738821032050,-295.95831041,0.00017,2]
[351852174,1738821032061,-337.50168959,0.00017,2]
[351852175,1738821032071,-276.611373,0.00017951,2]
[351852176,1738821032080,-1000.0,0.00018104,2]
[351852177,1738821032089,-266.36,0.00018112,2]
[351852178,1738821032213,-96.26706541,0.00018136,2]
[351852179,1738821032225,-564.86582071,0.00018136,2]
[351852180,1738821032238,-1059.93711388,0.00018136,2]
[351852181,1738821032247,-217.29,0.00018337,2]
[351852182,1738821032259,-35.1773545,0.00018444,2]
[351852183,1738821032271,-164.8226455,0.00018444,2]
[351852184,1738821032281,-999.99,0.00018533,2]
[351852185,1738821032290,-150.99,0.00018533,2]
[351852186,1738821032300,-499.99,0.00018533,2]
[351852188,1738821032309,-9999.99,0.00018533,2]
[351852190,1738821032319,-379.47,0.00018607,2]
[351852192,1738821032328,-368.51,0.0001863,2]
[351852193,1738821032337,-381.11,0.00018662,2]
[351852194,1738821032347,-376.23,0.00018707,2]
[351852195,1738821032357,-374.74,0.00018769,2]
[351852196,1738821032367,-369.58,0.00018859,2]
[351852197,1738821032376,-359.04,0.00018895,2]
[351852198,1738821032385,-371.59,0.00018954,2]
[351852199,1738821032395,-1386.466,0.00019,8]
[351852200,1738821032404,-700.0,0.00019,2]
[351852201,1738821032414,-604.39,0.0001909,30]
[351852203,1738821032423,-160.01,0.00019099,2]
[351852204,1738821032433,-373.79,0.00019171,2]
[351852205,1738821032443,-150.0,0.00019178,2]
[351852206,1738821032451,-150.0,0.00019178,2]
[351852207,1738821032461,-379.2,0.00019213,2]
[351852208,1738821032470,-519.87,0.00019215,7]
[351852209,1738821032479,-153.6,0.00019215,2]
[351852210,1738821032491,-370.83,0.00019215,2]
[351852211,1738821032500,-368.4,0.00019215,2]
[351852212,1738821032510,-381.75,0.00019215,2]
[351852213,1738821032519,-370.65,0.00019215,2]
[351852214,1738821032528,-376.72,0.00019215,2]
[351852215,1738821032538,-368.09,0.00019215,2]
[351852216,1738821032549,-378.02,0.00019215,2]
[351852217,1738821032560,-378.34,0.00019215,2]
[351852218,1738821032572,-378.36,0.00019215,2]
[351852219,1738821032582,-372.17,0.00019324,2]
[351852220,1738821032591,-150.0,0.0001947,2]
[351852221,1738821032600,-441.44,0.00019478,2]
[351852222,1738821032609,-150.0,0.00019683,2]
[351852223,1738821032618,-3000.0,0.000197,2]
[351852224,1738821032627,-1506.39790687,0.00019833,2]
[351852225,1738821032636,-173757.57907649,0.000199,2]
[351852226,1738821032651,-101195.00000094,0.000199,2]
[351852227,1738821032661,-574.06143252,0.000199,2]
[351852228,1738821032672,-1180.43286986,0.000199,2]
[351852229,1738821032683,-9879.6,0.000199,2]
[351852230,1738821032694,-256.249993,0.000199,2]
[351852241,1738821037953,-10499.99990046,0.000199,2]
[351852242,1738821037964,-24695.43085365,0.000199,2]
[351852243,1738821037975,-1987.2,0.000199,2]
[351852244,1738821038011,-1052.0,0.000199,2]
[351852245,1738821038022,-484.99755518,0.000199,2]
[351852246,1738821038184,-7402.59358058,0.000199,2]
[351852247,1738821038248,-61786.41074912,0.000199,2]
[351852248,1738821038260,-269.37099458,0.000199,2]
[351852418,1738821039895,-986.14516,0.000199,2]
[351852424,1738821039958,-305.01,0.000199,2]
[351852432,1738821040024,-1885.37424271,0.000199,2]
[351852434,1738821040035,-69195.0,0.000199,2]
[351852435,1738821040086,-1391.37397446,0.000199,2]
[351852436,1738821040097,-2666.2,0.000199,2]
[351852455,1738821043017,-2806.70929444,0.000199,2]
[351852458,1738821043028,-3111.25050942,0.000199,2]
[351852460,1738821043073,-2469.0,0.000199,2]
[351852461,1738821043131,-49430.00000002,0.000199,2]
[351852462,1738821043242,-1485.63742013,0.000199,2]
[351852463,1738821043254,-925.16783855,0.000199,2]
[351852649,1738821046072,-975.41277296,0.000199,2]
[351852652,1738821046084,-1632.7100835,0.000199,2]
[351852654,1738821046095,-769.78103063,0.000199,2]
[351852660,1738821046143,-2019.0631783,0.000199,2]
[351852662,1738821046155,-987.4,0.000199,2]
[351852674,1738821046261,-34636.02910906,0.000199,2]
[351852676,1738821046273,-412.53,0.000199,2]
[351852678,1738821046323,-400.0,0.000199,2]
[351853853,1738821064159,7238.09004586,9.936e-05,2]
[351853854,1738821064468,7238.09004586,9.932e-05,2]
[351853855,1738821064756,7238.09004586,9.973e-05,2]
[351853856,1738821065183,7238.09004586,9.964e-05,2]
[351853857,1738821085644,200.0,9.996e-05,2]
[351853858,1738821085852,200.0,9.945e-05,2]
[351853859,1738821086138,200.0,9.948e-05,2]
[351853860,1738821128024,201.08611186,0.0002,120]
[351853861,1738821146576,155.468499,9.881e-05,2]
[351853862,1738821173270,186.522636,9.881e-05,2]
[351853863,1738821173607,186.522636,0.00010018,2]
[351853864,1738821173938,186.522636,0.00010155,2]
[351853865,1738821174307,186.522636,0.00010292,2]
[351853866,1738821174610,186.522636,0.00010429,2]
[351853867,1738821174934,186.522636,0.00010566,2]
[351853868,1738821175248,186.522636,0.00010703,2]
[351853869,1738821175580,186.522636,0.0001084,2]
[351853870,1738821175908,186.522636,0.00010977,2]
[351853871,1738821176236,186.522636,0.00011114,2]
[351853872,1738821176564,186.522636,0.00011251,2]
[351853873,1738821176874,186.522636,0.00011388,2]
[351853874,1738821187990,188.197907,9.881e-05,2]
[351853875,1738821188222,188.197907,0.00010018,2]
[351853876,1738821188550,188.197907,0.00010155,2]
[351853877,1738821188872,188.197907,0.00010292,2]
[351853878,1738821189195,188.197907,0.00010429,2]
[351853879,1738821189964,188.197907,0.00010566,2]
[351853880,1738821190288,188.197907,0.00010703,2]
[351853881,1738821190606,188.197907,0.0001084,2]
[351853882,1738821190940,188.197907,0.00010977,2]
[351853883,1738821191407,188.197907,0.00011114,2]
[351853884,1738821191715,188.197907,0.00011251,2]
[351853885,1738821192028,188.197907,0.00011388,2]
[351853886,1738821198329,156.999012,9.881e-05,2]
[351853887,1738821298521,255.3,0.00010137,2]
[351853888,1738821617339,2746.68057,0.0001,2]
[351853889,1738821634154,158.16769,9.881e-05,2]
[351853894,1738821936315,450.0,0.0002,120]
[351853895,1738821953003,2288.90047,0.00011388,2]
[351855859,1738822232128,-294.85305,0.000149,54]
[351855860,1738822232188,-741.14695,0.000149,54]
[351855861,1738822232197,-150.0,0.0001495,2]
[351855862,1738822232207,-2000.0,0.00015,2]
[351855863,1738822232217,-150.0,0.00015517,2]
[351855864,1738822232228,-2288.90048,0.00016388,2]
[351855865,1738822232238,-150.0,0.0001639,2]
[351855866,1738822232248,-255.3,0.00016813,2]
[351855867,1738822232259,-323.13,0.00016828,2]
[351855868,1738822232273,-200.0,0.00018607,2]
[351855869,1738822232284,-410.41,0.00018619,2]
[351855870,1738822232294,-160.01,0.00018629,2]
[351855871,1738822232303,-2248.02,0.00018629,2]
[351855872,1738822232314,-153.6,0.00018651,2]
[351855873,1738822232324,-1000.0,0.00018651,2]
[351855874,1738822232334,-574.17,0.00018831,30]
[351855875,1738822232343,-1668.85,0.0001885,2]
[351855876,1738822232353,-377.37,0.00018998,2]
[351855877,1738822232362,-372.04,0.00019,2]
[351855878,1738822232372,-368.11,0.00019002,2]
[351855879,1738822232382,-380.92,0.00019004,2]
[351855880,1738822232392,-374.44,0.00019008,2]
[351855881,1738822232402,-377.54,0.00019014,2]
[351855882,1738822232413,-367.95,0.00019022,2]
[351855883,1738822232423,-374.72,0.00019033,2]
[351855884,1738822232433,-381.44,0.00019049,2]
[351855885,1738822232443,-376.77,0.00019071,2]
[351855886,1738822232453,-323.13,0.00019092,2]
[351855887,1738822232463,-379.05,0.00019104,2]
[351855888,1738822232473,-180.689,0.00019104,2]
[351855889,1738822232483,-1605.788,0.00019104,2]
[351855890,1738822232493,-379.94,0.00019149,2]
[351855891,1738822232503,-150.0,0.00019178,2]
[351855892,1738822232513,-380.3,0.0001921,2]
[351855893,1738822232522,-368.04,0.00019323,2]
[351855894,1738822232532,-67.27985601,0.00019465,2]
[351855895,1738822232544,-305.31014399,0.00019465,2]
[351855896,1738822232554,-639.597,0.00019659,2]
[351855897,1738822232563,-292.742,0.00019659,2]
[351855898,1738822232573,-573.032,0.00019659,2]
[351855899,1738822232583,-1830.462,0.00019659,2]
[351855900,1738822232593,-309.21685601,0.00019659,2]
[351855901,1738822232609,-546.91306745,0.00019659,2]
[351855902,1738822232620,-363.36010393,0.00019659,2]
[351855903,1738822232632,-47.83197261,0.00019659,2]
[351855904,1738822232642,-2953.0,0.00019659,2]
[351855905,1738822232652,-789.0,0.00019659,2]
[351855906,1738822232661,-946.034,0.00019659,2]
[351855907,1738822232671,-540.032,0.00019659,2]
[351855908,1738822232680,-1269.35341929,0.00019659,2]
[351855909,1738822232692,-2753.64658071,0.00019659,2]
[351855910,1738822232702,-375.6,0.00019664,2]
[351855911,1738822232713,-150.0,0.00019683,2]
[351855912,1738822232723,-3000.0,0.000197,2]
[351855913,1738822232732,-1009.673,0.00019798,2]
[351855914,1738822232741,-1004.80041929,0.00019798,2]
[351855938,1738822238158,-2906.19958071,0.00019798,2]
[351855939,1738822238167,-152.959,0.00019798,2]
[351855940,1738822238177,-1108.0,0.00019798,2]
[351855941,1738822238187,-170.2078958,0.00019873,2]
[351855942,1738822238197,-151.30964303,0.00019873,2]
[351855943,1738822238207,-159.48313488,0.00019873,2]
[351855944,1738822238218,-5259.4700139,0.00019897,2]
[351855945,1738822238278,-545.32998612,0.00019897,2]
[351855946,1738822238288,-370.23,0.000199,2]
[351855947,1738822238298,-382.37,0.000199,2]
[351855948,1738822238307,-158.24442179,0.000199,2]
[351855949,1738822238319,-546.53737778,0.000199,2]
[351855950,1738822238395,-376.61,0.00019798,2]
[351855951,1738822238405,-776.20994202,0.000199,2]
[351856103,1738822240076,-1600.0,0.000199,2]
[351856105,1738822240089,-504.94079845,0.000199,2]
[351856111,1738822240139,-24605.76176815,0.000199,2]
[351856136,1738822240374,-385.95255073,0.000199,2]
[351856144,1738822240437,-5823.12374433,0.000199,2]
[351856147,1738822240453,-2250.9800034,0.000199,2]
[351856149,1738822240465,-1028.48050301,0.000199,2]
[351856523,1738822244182,-290.81,0.00017061,2]
[351856524,1738822244192,-290.81,0.00019325,2]
[351856527,1738822244203,-1875.88,0.000199,2]
[351856540,1738822244334,-24402.40242888,0.000199,2]
[351856542,1738822244346,-12189.91785,0.000199,2]
[351856734,1738822246228,-38678.01678094,0.000199,2]
[351856743,1738822246292,-520.38152683,0.000199,2]
[351856750,1738822246352,-987.15993067,0.000199,2]
[351856752,1738822246363,-8204.93137371,0.000199,2]
[351856754,1738822246373,-375.55,0.000199,2]
[351856756,1738822246382,-258.77481903,0.00019929,2]
[351856758,1738822246392,-1000.0,0.00019933,2]
[351856760,1738822246401,-150.0,0.00019939,2]
[351856762,1738822246410,-150.0,0.00019944,2]
[351856764,1738822246419,-150.0,0.00019948,2]
[351856766,1738822246428,-507.91343738,0.00019949,2]
[351856768,1738822246438,-150.0,0.0001995,2]
[351856770,1738822246447,-1000.0,0.00019952,2]
[351856772,1738822246456,-150.0,0.00019952,2]
[351856774,1738822246465,-150.0,0.00019952,2]
[351856776,1738822246474,-150.0,0.00019953,2]
[351856778,1738822246483,-1000.0,0.00019954,2]
[351856779,1738822246493,-150.0,0.00019957,2]
[351856782,1738822246503,-150.0,0.00019961,2]
[351856783,1738822246512,-150.0,0.00019961,2]
[351856786,1738822246522,-150.0,0.00019963,2]
[351856788,1738822246532,-150.0,0.00019965,2]
[351856790,1738822246542,-150.0,0.00019966,2]
[351856792,1738822246551,-150.0,0.00019968,2]
[351856794,1738822246560,-150.0,0.00019968,2]
[351856796,1738822246569,-150.0,0.0001997,2]
[351856797,1738822246579,-150.0,0.00019971,2]
[351856800,1738822246588,-150.0,0.00019972,2]
[351856801,1738822246598,-150.0,0.00019972,2]
[351856804,1738822246607,-150.0,0.00019972,2]
[351856805,1738822246617,-150.0,0.00019974,2]
[351856807,1738822246626,-150.0,0.00019974,2]
[351856809,1738822246635,-150.0,0.00019975,2]
[351856811,1738822246645,-150.0,0.00019976,2]
[351856813,1738822246654,-150.28395711,0.00019978,2]
[351856815,1738822246663,-150.0,0.00019981,2]
[351856817,1738822246672,-150.0,0.00019982,2]
[351856819,1738822246682,-150.0,0.00019982,2]
[351856821,1738822246691,-1000.0,0.00019984,2]
[351856823,1738822246701,-150.64722875,0.00019986,2]
[351856825,1738822246710,-1000.0,0.00019987,2]
[351856827,1738822246720,-150.0,0.00019989,2]
[351856829,1738822246729,-150.0,0.00019992,2]
[351856831,1738822246739,-781.34566255,0.00019995,2]
[351856834,1738822246756,-218.65433745,0.00019995,2]
[351856836,1738822246766,-150.0,0.00019995,2]
[351856838,1738822246775,-150.0,0.00019996,2]
[351856840,1738822246784,-6039.51053897,0.00019998,10]
[351857635,1738822268331,176.143381,9.881e-05,2]
[351857636,1738822268657,176.143381,0.00010018,2]
[351857637,1738822268981,176.143381,0.00010155,2]
[351857638,1738822269298,176.143381,0.00010292,2]
[351857639,1738822269651,176.143381,0.00010429,2]
[351857640,1738822269965,176.143381,0.00010566,2]
[351857651,1738822270265,176.143381,0.00010703,2]
[351857683,1738822270582,176.143381,0.0001084,2]
[351857716,1738822270905,176.143381,0.00010977,2]
[351857747,1738822271226,176.143381,0.00011114,2]
[351857761,1738822271544,176.143381,0.00011251,2]
[351857793,1738822271999,176.143381,0.00011388,2]
[351857823,1738822276477,155.639737,9.881e-05,2]
[351857824,1738822285956,155.468499,9.881e-05,2]
[351857825,1738822313297,174.882725,9.881e-05,2]
[351857826,1738822313600,174.882725,0.00010018,2]
[351857827,1738822313939,174.882725,0.00010155,2]
[351857828,1738822314705,174.882725,0.00010292,2]
[351857829,1738822315050,174.882725,0.00010429,2]
[351857830,1738822315379,174.882725,0.00010566,2]
[351857831,1738822315849,174.882725,0.00010703,2]
[351857832,1738822316017,174.882725,0.0001084,2]
[351857833,1738822316367,174.882725,0.00010977,2]
[351857834,1738822316696,174.882725,0.00011114,2]
[351857835,1738822317017,174.882725,0.00011251,2]
[351857836,1738822317352,174.882725,0.00011388,2]
[351857837,1738822351798,4214.401,8.973e-05,2]
[351857844,1738822859709,2500.0,0.0002,120]
[351857847,1738823108560,1285244.35828086,0.0001,2]
[351857859,1738823432485,-550.0,0.00013,2]
[351857860,1738823432496,-150.0,0.000143,2]
[351857861,1738823432507,-150.0,0.000143,2]
[351857862,1738823432517,-47.3102735,0.00014433,2]
[351857863,1738823432575,-102.6897265,0.00014433,2]
[351857864,1738823432586,-600.0,0.00015,2]
[351857865,1738823432596,-2614.40106339,0.000154,5]
[351857876,1738823438396,-1953.59893661,0.000154,5]
[351857877,1738823438406,-2957.95106339,0.000162,2]
[351858055,1738823440375,-13803.89735661,0.000162,2]
[351858057,1738823440387,-7362.60527206,0.000162,2]
[351858060,1738823440399,-17661.94654074,0.000162,2]
[351858062,1738823440408,-261.72,0.00016976,2]
[351858064,1738823440417,-650.0,0.00017,2]
[351858066,1738823440426,-4542.0,0.000184,2]
[351858078,1738823440543,-328.32,0.00018785,2]
[351858080,1738823440553,-150.0,0.00018919,2]
[351858082,1738823440562,-200.0,0.0001892,2]
[351858084,1738823440571,-586.83,0.0001892,2]
[351858086,1738823440581,-1000.0,0.00018955,2]
[351858088,1738823440590,-160.01,0.00018966,2]
[351858090,1738823440600,-700.0,0.00019,2]
[351858092,1738823440610,-173.83,0.00019001,2]
[351858094,1738823440619,-545.46,0.00019058,30]
[351858096,1738823440628,-150.0,0.00019178,2]
[351858098,1738823440637,-261.72,0.0001924,2]
[351858100,1738823440647,-150.0,0.00019683,2]
[351858102,1738823440656,-3000.0,0.000197,2]
[351858104,1738823440665,-200.04,0.00019766,2]
[351858106,1738823440675,-5102.17000036,0.00019781,7]
[351858108,1738823440685,-367.71,0.000199,2]
[351858110,1738823440694,-1405.97137982,0.000199,2]
[351858112,1738823440703,-18966.89180064,0.00019924,2]
[351858114,1738823440713,-150.0,0.00019925,2]
[351858116,1738823440723,-1000.0,0.00019928,2]
[351858118,1738823440732,-150.0,0.00019932,2]
[351858120,1738823440743,-150.0,0.00019933,2]
[351858122,1738823440752,-1000.0,0.00019933,2]
[351858123,1738823440762,-150.0,0.00019933,2]
[351858124,1738823440771,-1000.0,0.00019934,2]
[351858125,1738823440780,-150.0,0.00019936,2]
[351858126,1738823440790,-1000.0,0.00019942,2]
[351858127,1738823440800,-1000.0,0.00019942,2]
[351858128,1738823440809,-150.0,0.00019947,2]
[351858129,1738823440819,-1000.0,0.00019952,2]
[351858130,1738823440829,-150.0,0.00019953,2]
[351858131,1738823440838,-150.0,0.00019956,2]
[351858132,1738823440848,-150.0,0.00019956,2]
[351858133,1738823440862,-1284.631,0.00019962,2]
[351858134,1738823440873,-180.68911942,0.00019962,2]
[351858135,1738823440883,-150.0,0.00019962,2]
[351858136,1738823440893,-373.95,0.00019962,2]
[351858137,1738823440902,-150.0,0.00019963,2]
[351858138,1738823440911,-150.0,0.00019963,2]
[351858139,1738823440921,-150.0,0.00019969,2]
[351858140,1738823440930,-150.0,0.0001997,2]
[351858142,1738823440940,-150.0,0.0001997,2]
[351858144,1738823440950,-150.0,0.00019972,2]
[351858146,1738823440959,-150.0,0.00019974,2]
[351858148,1738823440968,-1000.0,0.00019975,2]
[351858150,1738823440978,-150.0,0.00019975,2]
[351858152,1738823440988,-150.0,0.00019979,2]
[351858154,1738823440998,-150.0,0.00019982,2]
[351858156,1738823441007,-150.0,0.00019983,2]
[351858158,1738823441017,-150.0,0.00019987,2]
[351858160,1738823441026,-150.0,0.00019987,2]
[351858162,1738823441036,-150.0,0.00019989,2]
[351858164,1738823441046,-150.0,0.00019989,2]
[351858166,1738823441056,-150.0,0.0001999,2]
[351858168,1738823441065,-150.0,0.00019994,2]
[351858170,1738823441075,-1525.93365,0.00019996,2]
[351858172,1738823441084,-38148.749568,0.00019998,10]
[351858174,1738823441093,-333.4934,0.00019999,2]
[351858176,1738823441102,-2000.0,0.00019999,2]
[351858178,1738823441112,-2000.0,0.00019999,2]
[351858180,1738823441121,-1000.0,0.00019999,2]
[351858182,1738823441132,-1000.0,0.00019999,2]
[351858184,1738823441142,-2000.0,0.00019999,2]
[351858185,1738823441151,-150.0,0.00019999,2]
[351858187,1738823441160,-1832.18261236,0.0002,2]
[351858191,1738823441188,-19825.6,0.0002,2]
[351858491,1738823443745,-4419.65453245,0.0002,2]
[351858493,1738823443760,-5634.34546755,0.0002,2]
[351858753,1738823446443,-538.7373947,0.0002,2]
[351858755,1738823446469,-484.3126053,0.0002,3]
[351858758,1738823446492,-4515.6873947,0.0002,3]
[351858760,1738823446504,-5402.11827836,0.0002,4]
[351858786,1738823446744,-1175.32966605,0.0002,4]
[351858788,1738823446756,-153.6,0.0002,2]
[351858791,1738823446769,-153.6,0.0002,2]
[351858793,1738823446780,-501.76791613,0.0002,3]
[351858795,1738823446792,-501.26050694,0.0002,3]
[351858797,1738823446803,-232.59546711,0.0002,3]
[351859666,1738823745206,2500.0,0.0002,120]
[351859667,1738823756200,154.703948,9.881e-05,2]
[351859668,1738823756523,154.703948,0.00010155,2]
[351859669,1738823756840,154.703948,0.00010429,2]
[351859670,1738823757147,154.703948,0.00010703,2]
[351859671,1738823757457,154.703948,0.00010977,2]
[351859672,1738823757778,154.703948,0.00011251,2]
[351859673,1738823767852,155.819145,9.881e-05,2]
[351859674,1738823768025,155.819145,0.00010155,2]
[351859675,1738823768329,155.819145,0.00010429,2]
[351859676,1738823768642,155.819145,0.00010703,2]
[351859677,1738823768985,155.819145,0.00010977,2]
[351859678,1738823769337,155.819145,0.00011251,2]
[351859679,1738823777181,155.639737,9.881e-05,2]
[351859680,1738823785687,155.468499,9.881e-05,2]
[351859681,1738823815517,153.48,0.00010137,2]
[351859683,1738823935083,154.703949,9.881e-05,2]
[351859684,1738823935428,154.703949,0.00010429,2]
[351859685,1738823935765,154.703949,0.0001084,2]
[351859686,1738823936089,154.703949,0.00011388,2]
[351859687,1738823950805,155.819145,9.881e-05,2]
[351859688,1738823951118,155.819145,0.00010429,2]
[351859689,1738823951469,155.819145,0.0001084,2]
[351859690,1738823951957,155.819145,0.00011388,2]
[351859691,1738824175132,154.70395,9.881e-05,2]
[351859692,1738824175456,154.70395,0.00011114,2]
[351859693,1738824181335,-235.0,0.000149,54]
[351859694,1738824181361,-12765.0,0.0001998,30]
[351859695,1738824189045,155.819146,9.881e-05,2]
[351859696,1738824189199,155.819146,0.00011114,2]
[351859698,1738824417362,154.70395,9.881e-05,2]
[351859699,1738824427552,155.819147,9.881e-05,2]
[351859702,1738824541556,185.89721594,0.0002,120]
[351859713,1738824631518,-2000.0,0.000123,2]
[351859714,1738824631528,-550.0,0.00013,2]
[351859715,1738824631537,-600.0,0.00015,2]
[351859716,1738824631547,-339.8,0.00016518,2]
[351859717,1738824631556,-650.0,0.00017,2]
[351859718,1738824631566,-3698.89495355,0.00017413,2]
[351859719,1738824631575,-330.396606,0.00018217,2]
[351859720,1738824631584,-1000.0,0.00018324,2]
[351859721,1738824631593,-130.44666443,0.00018375,2]
[351859722,1738824631609,-119.55333557,0.00018375,2]
[351859723,1738824631618,-482.4,0.00018388,2]
[351859724,1738824631628,-163.95,0.00018401,2]
[351859725,1738824631637,-173.83,0.00018443,2]
[351859726,1738824631648,-4160.26666443,0.00018457,2]
[351859727,1738824631661,-1638.67333557,0.00018457,2]
[351859728,1738824631670,-240.05,0.00018478,2]
[351859729,1738824631680,-375.76,0.0001848,2]
[351859730,1738824631691,-370.76,0.00018486,2]
[351859731,1738824631700,-377.55,0.00018499,2]
[351859732,1738824631710,-377.93,0.00018522,2]
[351859733,1738824631719,-377.8,0.00018565,2]
[351859734,1738824631730,-370.84,0.00018565,2]
[351859735,1738824631740,-370.61,0.00018565,2]
[351859736,1738824631749,-377.71,0.00018565,2]
[351859737,1738824631759,-381.01,0.00018565,2]
[351859738,1738824631768,-372.7,0.00018565,2]
[351859739,1738824631778,-378.44,0.00018565,2]
[351859740,1738824631787,-381.59,0.00018565,2]